bitfinex-derivatives/quotes_ETHF0:USTF0_20250708
["timestamp","ask_amount","ask_price","bid_price","bid_amount"]
[1751992685231,0.77686,2574.1,2574.0,0.77688]
[1751992685525,0.77686,2574.1,2574.0,1.44218]
[1751992685731,28.17086,2574.1,2574.0,1.44218]
[1751992687825,28.17086,2574.1,2574.0,0.77688]
[1751992688030,28.17086,2574.1,2574.0,2.42088]
[1751992688431,0.77686,2574.2,2574.1,0.77686]
[1751992688639,27.392,2574.2,2574.1,0.77686]
[1751992688833,28.16883,2574.2,2574.1,0.77686]
[1751992689036,28.16882,2574.3,2574.2,0.7768]
[1751992689541,27.392,2574.3,2574.0,4.8518]
[1751992689738,0.77686,2574.1,2574.0,5.62868]
[1751992689937,0.77686,2574.1,2574.0,2.42088]
[1751992690741,0.77686,2574.1,2574.0,0.77688]
[1751992690940,0.77686,2574.1,2574.0,2.42088]
[1751992691442,0.77686,2574.2,2574.1,0.77684]
[1751992691636,28.16882,2574.3,2574.2,0.77683]
[1751992691838,28.16882,2574.3,2574.2,1.75553]
[1751992692141,27.39,2574.3,2574.2,5.62863]
[1751992692339,28.1668,2574.3,2574.2,2.42083]
[1751992693440,2.3105711,2575.1,2574.2,4.8518]
[1751992693634,1.49786066,2575.0,2574.9,0.77659]
[1751992693848,1.397,2575.1,2575.0,0.77659]
[1751992694139,30.28264018,2575.1,2575.0,1.44189]
[1751992694337,28.16458,2575.1,2575.0,1.44189]
[1751992694736,3.2078,2575.2,2575.1,0.77656]
[1751992694936,27.387,2575.3,2575.1,0.9787]
[1751992695136,0.77653,2575.2,2575.1,1.75525]
[1751992695336,1.397,2575.3,2575.2,0.77653]
[1751992695536,27.387,2575.3,2575.2,1.75523]
[1751992695741,56.73748,2575.4,2575.3,0.7765]
[1751992695947,85.61992802,2575.4,2575.3,0.7765]
[1751992696347,58.23492802,2575.4,2575.3,1.7552]
[1751992696549,1.49744802,2575.4,2575.3,1.7552]
[1751992696849,28.88144802,2575.4,2575.3,1.7552]
[1751992697043,3.2078,2575.6,2575.5,0.77644]
[1751992697347,32.86619709,2575.6,2575.5,1.75514]
[1751992697545,2.27439709,2575.6,2575.5,2.42044]
[1751992697747,28.16041,2575.6,2575.5,2.42044]
[1751992697944,0.77644,2575.5,2575.4,3.2078]
[1751992698146,0.77644,2575.5,2575.4,4.1865]
[1751992698343,0.77644,2575.5,2575.4,4.8518]
[1751992699149,0.77644,2575.5,2575.4,0.6653]
[1751992699347,0.7765,2575.3,2575.2,0.6392]
[1751992699545,27.379,2575.3,2574.8,4.834]
[1751992699851,0.77657,2575.1,2575.0,0.77656]
[1751992700144,28.15557,2575.1,2575.0,0.6653]
[1751992700846,0.77662,2574.9,2574.8,3.2078]
[1751992701148,0.77671,2574.6,2574.5,1.42424]
[1751992701350,0.77671,2574.6,2574.5,2.07654]
[1751992701549,0.77671,2574.6,2574.5,2.40294]
[1751992703047,27.379,2574.8,2574.5,1.6262]
[1751992703252,0.77664,2574.9,2574.8,0.77664]
[1751992703448,28.15364,2574.9,2574.8,1.80884]
[1751992703844,0.77662,2575.0,2574.9,0.77661]
[1751992704050,0.77665,2574.9,2574.8,0.77664]
[1751992704250,0.77665,2574.9,2574.8,1.80884]
[1751992704448,0.77665,2574.9,2574.8,1.0322]
[1751992704647,0.77662,2575.0,2574.8,1.0322]
[1751992704857,4.2514711,2575.8,2574.9,7.30807452]
[1751992705150,0.77648,2575.4,2575.3,3.2078]
[1751992705451,0.77648,2575.4,2575.3,0.6523]
[1751992705647,30.61236,2575.7,2575.3,0.6523]
[1751992705852,0.77644,2575.5,2575.4,1.0322]
[1751992706054,0.77644,2575.5,2575.4,2.46095]
[1751992706242,1.94091,2575.8,2575.5,0.77644]
[1751992706447,1.94091,2575.8,2575.6,3.2078]
[1751992706647,0.77641,2575.6,2575.5,1.0322]
[1751992706843,0.77641,2575.6,2575.5,5.66874]
[1751992707051,0.77641,2575.6,2575.5,4.24]
[1751992707455,0.77641,2575.6,2575.5,4.8876]
[1751992707752,0.77641,2575.6,2575.5,5.66404]
[1751992708346,0.77638,2575.8,2575.5,10.51117452]
[1751992708653,0.77641,2575.7,2575.6,1.8086]
[1751992709355,0.77641,2575.7,2575.6,1.0322]
[1751992709555,0.77638,2575.7,2575.6,1.0322]
[1751992709755,0.77634,2575.9,2575.6,1.6845]
[1751992709945,0.77634,2575.9,2575.8,3.2078]
[1751992710144,5.14836,2576.3,2575.8,3.2078]
[1751992710145,0.77631,2576.0,2575.8,4.8923]
[1751992710352,2.3105711,2576.5,2575.9,1.0322]
[1751992710552,29.6396268,2576.4,2576.3,0.7762]
[1751992710853,1.4924368,2576.4,2576.3,1.8084]
[1751992711252,0.77609,2576.7,2576.6,0.77611]
[1751992711556,0.77614,2576.6,2576.5,3.2078]
[1751992711752,2.26765954,2576.6,2576.5,3.2078]
[1751992712251,0.77614,2576.6,2576.5,3.2078]
[1751992713155,0.77626,2576.1,2576.0,1.6691]
[1751992713352,0.77626,2576.1,2576.0,2.44539]
[1751992713553,0.77626,2576.1,2576.0,1.6691]
[1751992714356,0.77625,2576.2,2576.0,1.6691]
[1751992714557,0.77625,2576.2,2576.1,1.0322]
[1751992715357,0.77626,2576.1,2576.0,0.6369]
[1751992716756,0.77626,2576.1,2576.0,1.6691]
[1751992717358,0.77635,2575.8,2575.7,1.0322]
[1751992717559,0.77638,2575.7,2575.6,3.2078]
[1751992717759,0.77638,2575.7,2575.6,0.6523]
[1751992717961,0.77645,2575.5,2575.4,0.77645]
[1751992718359,0.77645,2575.5,2575.4,1.42875]
[1751992718559,0.77645,2575.5,2575.4,1.6845]
[1751992718963,0.77638,2575.7,2575.6,0.7764]
[1751992719162,0.77638,2575.7,2575.6,2.4609]
[1751992719860,0.77638,2575.7,2575.6,5.6687]
[1751992720165,0.77637,2575.8,2575.7,0.77638]
[1751992720360,0.77647,2575.4,2575.3,3.8774]
[1751992720555,0.77647,2575.4,2575.3,4.5297]
[1751992721060,3.2175,2575.7,2574.9,1.94156]
[1751992721061,0.77656,2575.1,2575.0,3.2078]
[1751992721258,0.77656,2575.1,2575.0,3.98439]
[1751992721456,3.21779,2575.3,2574.9,1.0322]
[1751992721457,0.77659,2575.0,2574.9,1.0322]
[1751992721855,0.77659,2575.0,2574.9,1.80879]
[1751992722160,0.77659,2575.0,2574.9,1.0322]
[1751992722655,0.77665,2574.8,2574.7,3.8413]
[1751992723258,3.2078,2575.5,2575.2,0.77652]
[1751992723459,27.358,2575.4,2575.0,5.62357452]
[1751992723665,0.77656,2575.2,2575.0,6.40015452]
[1751992723969,0.77656,2575.1,2575.0,1.0322]
[1751992724165,0.77656,2575.1,2574.7,10.86357452]
[1751992724166,0.77662,2575.0,2574.7,4.8735]
[1751992724366,0.77657,2575.1,2574.8,1.0322]
[1751992724665,0.77657,2575.1,2574.9,1.0322]
[1751992724856,0.77657,2575.1,2574.8,1.3987]
[1751992725059,0.77655,2575.2,2575.1,0.77656]
[1751992725259,0.77655,2575.2,2575.1,1.42886]
[1751992725567,28.6916,2575.4,2575.3,0.7765]
[1751992725866,0.77651,2575.3,2575.2,0.77651]
[1751992726367,29.46809,2575.4,2575.3,0.7765]
[1751992726568,29.46809,2575.4,2575.3,1.4288]
[1751992726862,2.11109,2575.4,2575.3,1.6845]
[1751992727064,28.13349,2575.4,2575.3,0.6523]
[1751992727861,0.77653,2575.2,2575.1,0.77654]
[1751992728262,0.77653,2575.2,2575.1,2.46104]
[1751992729069,27.357,2575.4,2575.1,4.8923]
[1751992729263,0.77645,2575.5,2575.4,0.77647]
[1751992729669,0.77645,2575.5,2575.4,1.42877]
[1751992729869,0.77645,2575.5,2575.4,0.6523]
[1751992730064,0.77645,2575.5,2575.4,1.6845]
[1751992730259,0.77645,2575.5,2575.4,0.6523]
[1751992730670,0.7765,2575.3,2575.2,1.43961]
[1751992730968,0.7765,2575.3,2575.2,2.08501]
[1751992731364,0.7765,2575.3,2575.2,1.42191]
[1751992731570,0.7765,2575.3,2575.2,0.6454]
[1751992732670,0.77644,2575.6,2575.2,3.57712]
[1751992732868,0.77647,2575.5,2575.4,0.77645]
[1751992733067,0.77647,2575.5,2575.4,0.6454]
[1751992733671,29.29607,2575.6,2575.1,3.98435]
[1751992733872,0.7765,2575.3,2575.2,0.6454]
[1751992734868,3.3128,2575.3,2575.0,0.6854]
[1751992735069,0.77656,2575.1,2575.0,0.6854]
[1751992735274,0.77656,2575.1,2575.0,2.3212]
[1751992735471,0.77656,2575.1,2575.0,3.09775]
[1751992736572,0.77656,2575.1,2575.0,2.3212]
[1751992736975,0.77656,2575.1,2575.0,3.09779]
[1751992737877,0.77655,2575.2,2575.1,0.77653]
[1751992738175,0.77655,2575.2,2575.1,1.76693]
[1751992738376,0.77655,2575.2,2575.1,2.41236]
[1751992738678,0.77655,2575.2,2575.1,1.6358]
[1751992739983,1.94102,2575.7,2575.1,3.57721]
[1751992740276,0.77644,2575.5,2575.4,3.98425]
[1751992740475,0.77644,2575.5,2575.4,4.62965]
[1751992740775,0.77644,2575.5,2575.4,2.41225]
[1751992740981,0.77644,2575.5,2575.4,1.6358]
[1751992741278,0.77653,2575.2,2575.1,4.1982]
[1751992741478,3.2054,2575.4,2575.1,4.8436]
[1751992741678,0.77653,2575.2,2575.1,0.6454]
[1751992742076,0.77662,2574.9,2574.8,3.2078]
[1751992742380,0.77662,2574.9,2574.8,3.8532]
[1751992742577,0.77662,2574.9,2574.8,0.6454]
[1751992742783,28.12561,2575.0,2574.9,0.77662]
[1751992742981,28.12561,2575.0,2574.9,2.41242]
[1751992743476,28.12561,2575.0,2574.9,0.6454]
[1751992743979,0.77661,2575.0,2574.9,0.6454]
[1751992744178,27.349,2575.2,2574.9,1.6358]
[1751992744383,0.77656,2575.1,2575.0,0.9904]
[1751992744574,3.2078,2575.6,2575.1,0.9904]
[1751992744778,0.77653,2575.3,2575.1,3.98434]
[1751992744978,0.77653,2575.3,2575.2,3.07903]
[1751992745278,28.1245,2575.3,2575.2,3.07902]
[1751992745677,0.7765,2575.3,2575.2,3.07902]
[1751992745879,0.77659,2575.0,2574.9,0.9904]
[1751992746080,0.77659,2575.0,2574.9,2.43372]
[1751992746279,0.77659,2575.0,2574.9,2.3025]
[1751992746681,0.77659,2575.0,2574.9,3.07912]
[1751992746878,0.77659,2575.0,2574.9,2.3025]
[1751992747382,27.348,2575.3,2574.9,2.3025]
[1751992747582,28.84675756,2575.2,2575.1,3.98436]
[1751992747779,0.77653,2575.2,2575.1,3.8532]
[1751992747979,0.77653,2575.2,2575.1,5.62016]
[1751992748785,0.77659,2575.0,2574.9,1.44331]
[1751992748984,0.77659,2575.0,2574.9,1.3121]
[1751992749177,0.77659,2575.0,2574.9,2.3025]
[1751992749778,0.77659,2575.0,2574.9,1.3121]
[1751992749979,0.77668,2574.7,2574.6,4.1982]
[1751992750178,0.77668,2574.7,2574.6,4.8436]
[1751992750574,0.77668,2574.7,2574.6,3.8532]
[1751992750984,0.77668,2574.7,2574.6,5.62031]
[1751992751579,0.77668,2574.7,2574.6,3.8532]
[1751992752185,0.77668,2574.7,2574.6,5.62031]
[1751992752384,0.77668,2574.7,2574.6,3.8532]
[1751992752881,0.77668,2574.7,2574.6,4.62991]
[1751992753084,0.77668,2574.8,2574.7,0.77666]
[1751992753286,0.77668,2574.7,2574.6,3.98449]
[1751992753482,0.77668,2574.7,2574.6,5.62029]
[1751992753683,0.77668,2574.7,2574.6,4.8436]
[1751992753884,0.77668,2574.7,2574.6,5.62031]
[1751992756297,28.12067,2574.8,2574.7,0.77668]
[1751992756590,28.11967,2574.8,2574.7,0.77668]
[1751992756792,28.11967,2574.8,2574.7,0.6454]
[1751992756990,0.77667,2574.8,2574.7,1.42208]
[1751992757187,0.77664,2574.9,2574.8,0.77665]
[1751992757388,28.11864,2574.9,2574.8,1.42205]
[1751992757588,29.62119649,2574.9,2574.8,2.41245]
[1751992757787,29.62019649,2574.9,2574.8,2.41245]
[1751992758093,29.62019649,2574.9,2574.8,1.6358]
[1751992760388,29.62019649,2574.9,2574.8,0.6454]
[1751992760892,29.62019649,2574.9,2574.8,1.42205]
[1751992761091,29.62019649,2574.9,2574.8,2.41245]
[1751992761293,29.62019649,2574.9,2574.8,1.6358]
[1751992763696,29.62019649,2574.9,2574.8,2.41245]
[1751992763990,2.27919649,2574.9,2574.8,2.41245]
[1751992764194,29.61619649,2574.9,2574.8,2.41245]
[1751992764395,29.61619649,2574.9,2574.8,1.6358]
[1751992765492,29.61619649,2574.9,2574.8,0.6454]
[1751992766088,0.77668,2574.7,2574.6,0.77671]
[1751992766397,28.11268,2574.7,2574.6,1.681]
[1751992766798,27.336,2574.7,2574.6,2.45771]
[1751992766996,0.77667,2574.8,2574.7,0.77668]
[1751992767298,28.11067,2574.8,2574.7,2.45768]
[1751992767498,28.11067,2574.8,2574.7,2.3772]
[1751992767693,29.61412065,2574.8,2574.7,3.15388]
[1751992767893,28.11067,2574.8,2574.7,3.15388]
[1751992768591,0.77665,2574.9,2574.7,2.3772]
[1751992768797,0.77665,2574.9,2574.8,3.98443]
[1751992768997,28.10965,2574.9,2574.8,5.66543]
[1751992769199,29.61300396,2574.9,2574.8,5.66543]
[1751992770898,28.10862,2574.9,2574.8,5.66543]
[1751992771495,28.10862,2574.9,2574.8,7.02793]
[1751992772397,27.332,2574.9,2574.8,7.02793]
[1751992772592,0.77662,2575.0,2574.8,7.02793]
[1751992772799,0.77657,2575.2,2575.1,0.77652]
[1751992773099,28.10557,2575.2,2575.1,2.45752]
[1751992773300,29.60931516,2575.2,2575.1,2.45752]
[1751992773904,2.28031516,2575.2,2575.1,5.66532]
[1751992774101,29.60731516,2575.2,2575.1,5.66532]
[1751992774303,29.60731516,2575.2,2575.1,2.45752]
[1751992774802,2.28031516,2575.2,2575.1,2.45752]
[1751992774996,29.60731516,2575.2,2575.1,2.45752]
[1751992775202,29.60731516,2575.2,2575.1,2.45756]
[1751992775903,29.60731516,2575.2,2575.1,1.681]
[1751992776600,29.60731516,2575.2,2575.1,0.6845]
[1751992777203,1.94146,2575.1,2574.8,3.2078]
[1751992777403,1.94146,2575.1,2574.8,3.8923]
[1751992777404,0.77662,2574.9,2574.8,3.8923]
[1751992777603,0.77662,2574.9,2574.8,5.66545]
[1751992777904,0.77662,2574.9,2574.8,3.98445]
[1751992778105,0.77662,2574.9,2574.8,5.66545]
[1751992778494,28.09962,2575.0,2574.9,0.77662]
[1751992778900,28.09962,2575.0,2574.9,1.46112]
[1751992779104,28.09962,2575.0,2574.9,2.45762]
[1751992779500,27.323,2575.0,2574.9,2.45762]
[1751992779706,0.77654,2575.2,2574.9,3.62256]
[1751992780000,0.77654,2575.2,2575.1,3.98436]
[1751992780205,28.82333528,2575.2,2575.1,3.98436]
[1751992780507,27.319,2575.2,2575.1,3.98436]
[1751992780904,0.77653,2575.3,2575.2,0.7765]
[1751992781209,29.59966077,2575.3,2575.2,0.7765]
[1751992781400,2.28066077,2575.3,2575.2,1.4434]
[1751992781597,1.50413077,2575.3,2575.2,1.4434]
[1751992781803,0.77648,2575.4,2575.3,0.77647]
[1751992782003,29.59740551,2575.4,2575.3,0.77647]
[1751992782501,0.7765,2575.3,2575.2,0.6669]
[1751992782707,2.28042551,2575.3,2575.2,0.6669]
[1751992783204,0.77659,2575.0,2574.9,1.681]
[1751992783404,28.09159,2575.0,2574.9,3.12452]
[1751992784407,0.77659,2575.0,2574.9,3.12452]
[1751992784610,28.09059,2575.0,2574.9,5.82715465]
[1751992784907,28.09059,2575.0,2574.9,3.12452]
[1751992785705,0.77659,2575.0,2574.9,1.3514]
[1751992785912,28.08959,2575.0,2574.9,1.3514]
[1751992786303,28.08959,2575.0,2574.9,2.12802]
[1751992786708,28.08959,2575.0,2574.9,1.3514]
[1751992787112,28.08959,2575.0,2574.9,2.12802]
[1751992787914,28.08959,2575.0,2574.9,1.44352]
[1751992788109,28.08959,2575.0,2574.9,1.3514]
[1751992788505,28.08959,2575.0,2574.9,2.12802]
[1751992788710,28.08959,2575.0,2574.9,1.3514]
[1751992789813,0.77662,2574.9,2574.8,3.2078]
[1751992790010,2.16492,2574.9,2574.8,3.8923]
[1751992790515,0.77677,2574.4,2574.3,0.9965]
[1751992790704,6.39954652,2574.4,2574.3,0.9965]
[1751992791007,6.39954652,2574.4,2574.3,1.6778]
[1751992791008,28.08277,2574.4,2574.3,1.6778]
[1751992791516,0.77677,2574.4,2574.3,1.6778]
[1751992791717,28.08277,2574.4,2574.3,1.6778]
[1751992792907,29.58693792,2574.4,2574.3,1.6778]
[1751992793519,29.58693792,2574.4,2574.3,2.3206]
[1751992793816,0.77672,2574.6,2574.5,0.77672]
[1751992794012,29.60390086,2574.6,2574.5,0.9917]
[1751992794213,2.29790086,2574.6,2574.5,0.9917]
[1751992794410,29.60390086,2574.6,2574.5,0.9917]
[1751992795317,28.08272,2574.6,2574.5,0.9917]
[1751992795817,0.77672,2574.6,2574.5,1.673]
[1751992796011,28.08272,2574.6,2574.5,1.673]
[1751992796710,28.08272,2574.6,2574.5,2.44974]
[1751992797213,28.08272,2574.6,2574.5,1.673]
[1751992797516,28.08272,2574.6,2574.5,2.44974]
[1751992797917,28.08272,2574.6,2574.5,0.77674]
[1751992798118,28.08272,2574.6,2574.5,2.44974]
[1751992798915,0.77672,2574.6,2574.5,2.44974]
[1751992799119,28.07972,2574.6,2574.5,2.44974]
[1751992799313,0.77668,2574.8,2574.7,0.77664]
[1751992799516,28.07968,2574.8,2574.7,4.8808]
[1751992800018,28.07968,2574.8,2574.7,5.65748]
[1751992800519,28.07868,2574.8,2574.7,5.65748]
[1751992800718,1.94147,2575.1,2574.8,0.77661]
[1751992800719,0.77665,2574.9,2574.8,0.77661]
[1751992800921,28.07765,2574.9,2574.8,3.11171]
[1751992801110,28.07765,2574.9,2574.8,2.3351]
[1751992801515,28.07765,2574.9,2574.8,3.11175]
[1751992802419,28.07765,2574.9,2574.8,1.3434]
[1751992804027,0.77665,2574.9,2574.8,3.11175]
[1751992804214,28.07465,2574.9,2574.8,3.11175]
[1751992804625,27.296,2574.9,2574.8,2.3351]
[1751992804818,27.296,2574.9,2574.8,3.11175]
[1751992805223,0.77661,2575.0,2574.9,0.77662]
[1751992805425,27.296,2575.0,2574.9,2.44962]
[1751992805820,0.77657,2575.2,2575.1,0.77653]
[1751992806020,1.50486136,2575.3,2575.2,0.77653]
[1751992806329,29.57536549,2575.3,2575.2,1.673]
[1751992806516,29.57536549,2575.3,2575.2,0.6813]
[1751992807126,29.57536549,2575.3,2575.2,1.45783]
[1751992808022,29.57536549,2575.3,2575.2,0.6813]
[1751992808223,2.28136549,2575.3,2575.2,2.44953]
[1751992808424,29.57236549,2575.3,2575.2,2.44953]
[1751992809322,1.50484549,2575.3,2575.2,2.44953]
[1751992809529,0.77645,2575.5,2575.4,0.77647]
[1751992809728,28.79351206,2575.5,2575.4,2.44947]
[1751992810026,29.56995206,2575.5,2575.4,2.44947]
[1751992810226,0.77647,2575.4,2575.3,0.6793]
[1751992810527,6.28828285,2575.4,2575.3,0.6793]
[1751992810727,0.77656,2575.1,2575.0,1.76828]
[1751992810933,0.77656,2575.1,2575.0,2.44958]
[1751992811225,28.06355,2575.2,2575.1,0.77656]
[1751992811426,28.06352,2575.3,2575.2,0.77653]
[1751992811627,28.06352,2575.3,2575.2,2.44953]
[1751992812229,29.56798762,2575.3,2575.2,2.44953]
[1751992812521,29.56798762,2575.3,2575.2,1.673]
[1751992812923,29.56798762,2575.3,2575.2,2.44953]
[1751992813223,29.56798762,2575.3,2575.2,0.6813]
[1751992814525,0.77659,2575.0,2574.9,1.671]
[1751992814722,27.281,2575.1,2575.0,0.77659]
[1751992814928,27.281,2575.1,2575.0,2.44959]
[1751992815129,28.05756,2575.1,2575.0,2.44959]
[1751992816022,3.2078,2575.6,2575.1,1.94138]
[1751992816329,29.56041045,2575.5,2575.4,2.70327845]
[1751992816629,0.77647,2575.4,2575.3,0.77648]
[1751992816830,2.28042045,2575.4,2575.3,0.77648]
[1751992817032,2.28042045,2575.4,2575.3,1.45778]
[1751992817232,1.50395045,2575.4,2575.3,2.44948]
[1751992817431,2.28042045,2575.4,2575.3,2.44948]
[1751992817932,2.28042045,2575.4,2575.3,2.08308]
[1751992818131,1.50395045,2575.4,2575.3,3.75608]
[1751992818433,29.55642045,2575.4,2575.3,2.44948]
[1751992819131,28.05247,2575.4,2575.3,2.44948]
[1751992819533,27.276,2575.4,2575.3,2.44948]
[1751992819729,28.05246,2575.4,2575.3,1.673]
[1751992820031,27.276,2575.4,2575.3,1.673]
[1751992820232,28.05246,2575.4,2575.3,1.673]
[1751992820433,28.05246,2575.4,2575.3,2.44949]
[1751992820933,28.05246,2575.4,2575.3,1.673]
[1751992821931,27.276,2575.4,2575.3,2.44949]
[1751992822133,28.05246,2575.4,2575.3,2.44949]
[1751992822730,28.05246,2575.4,2575.3,1.673]
[1751992823830,31.92048845,2575.4,2575.0,0.955]
[1751992824129,3.47976845,2575.3,2575.2,0.6923]
[1751992824431,2.10869,2575.3,2575.2,0.6923]
[1751992824634,0.77661,2575.0,2574.8,1.73162]
[1751992824826,4.03547845,2575.3,2574.9,1.4689]
[1751992824827,28.04358,2575.1,2574.9,1.4689]
[1751992825028,0.77655,2575.1,2575.0,3.98437]
[1751992825335,0.77658,2575.0,2574.9,0.6923]
[1751992825634,27.266,2575.3,2575.0,0.77658]
[1751992825635,28.04157,2575.1,2575.0,0.77658]
[1751992825836,0.77658,2575.0,2574.9,0.6923]
[1751992826038,28.04158,2575.1,2574.9,1.46889]
[1751992826334,28.04158,2575.1,2575.0,3.2078]
[1751992826735,27.265,2575.1,2575.0,3.98438]
[1751992826934,0.77655,2575.2,2575.1,0.77655]
[1751992827135,28.04055,2575.2,2575.1,0.77655]
[1751992827439,1.94102,2575.6,2575.1,0.77653]
[1751992827736,0.77649,2575.3,2575.2,2.70327845]
[1751992828034,0.77649,2575.3,2575.2,1.6473]
[1751992828236,0.77654,2575.2,2575.0,6.68764845]
[1751992828536,0.77654,2575.2,2575.1,1.46885]
[1751992828936,0.77651,2575.3,2575.1,2.42385]
[1751992829327,0.77648,2575.4,2575.2,2.70327845]
[1751992829527,27.261,2575.5,2575.4,0.77644]
[1751992829733,29.54245919,2575.5,2575.4,4.35057845]
[1751992830236,60.4173,2575.8,2575.4,4.35057845]
[1751992830538,56.70334,2575.8,2575.7,2.70327845]
[1751992830738,1.50552575,2575.8,2575.7,6.68744845]
[1751992831328,0.77631,2575.9,2575.8,0.77632]
[1751992831531,1.50514053,2575.9,2575.8,0.77634]
[1751992831737,0.77631,2576.0,2575.8,0.77634]
[1751992832131,0.77631,2575.9,2575.8,0.77634]
[1751992832332,0.77634,2575.8,2575.7,3.2078]
[1751992832528,0.77643,2575.5,2575.4,1.6473]
[1751992833031,1.94118,2575.4,2575.0,0.955]
[1751992833236,0.77655,2575.1,2575.0,1.6473]
[1751992833435,3.47982845,2575.1,2575.0,1.6473]
[1751992833625,0.77655,2575.1,2575.0,1.6473]
[1751992834027,0.77655,2575.1,2575.0,4.8551]
[1751992834230,28.03055,2575.1,2575.0,4.8551]
[1751992835534,28.03055,2575.2,2575.0,5.63167]
[1751992836039,28.03055,2575.2,2575.1,0.955]
[1751992836433,28.03055,2575.2,2575.1,1.6473]
[1751992837942,0.77655,2575.1,2575.0,3.2078]
[1751992838239,0.77655,2575.1,2575.0,3.8621]
[1751992838439,0.77655,2575.2,2575.0,4.5544]
[1751992838631,0.77651,2575.3,2575.1,1.73154]
[1751992838836,28.0265,2575.3,2575.2,1.6473]
[1751992839141,29.52502194,2575.3,2575.2,0.6923]
[1751992839735,0.77655,2575.1,2575.0,4.8171]
[1751992839941,0.77655,2575.1,2575.0,4.5544]
[1751992840236,0.77655,2575.1,2575.0,1.3466]
[1751992842438,0.77655,2575.1,2575.0,0.6923]
[1751992844444,28.02255,2575.1,2575.0,1.6473]
[1751992845133,28.02055,2575.1,2575.0,1.6473]
[1751992845335,0.77654,2575.2,2575.0,2.42387]
[1751992845643,0.77654,2575.2,2575.1,0.955]
[1751992845845,27.243,2575.3,2575.1,2.42385]
[1751992845846,28.01952,2575.3,2575.1,2.42385]
[1751992846342,0.77652,2575.2,2575.1,0.6923]
[1751992846539,0.77652,2575.2,2575.1,3.9001]
[1751992846945,0.77652,2575.2,2575.1,4.8551]
[1751992847545,0.77652,2575.2,2575.1,5.63165]
[1751992847842,0.77652,2575.2,2575.1,4.8551]
[1751992848542,0.77651,2575.3,2575.1,4.8551]
[1751992848741,63.28911806,2575.9,2575.1,4.8551]
[1751992848742,1.94101,2575.6,2575.1,3.9001]
[1751992848942,1.94101,2575.6,2575.2,0.77651]
[1751992848943,0.77651,2575.3,2575.2,0.77651]
[1751992849144,2.27723996,2575.3,2575.2,0.6923]
[1751992849346,1.50072996,2575.3,2575.2,2.42382]
[1751992849745,28.01545,2575.5,2575.3,0.77649]
[1751992850043,28.01545,2575.5,2575.2,1.6473]
[1751992850044,28.01545,2575.5,2575.4,2.3219]
[1751992850244,29.5161704,2575.5,2575.4,2.3219]
[1751992850747,1.5007204,2575.5,2575.4,6.30616]
[1751992851046,27.236,2575.5,2575.4,6.30616]
[1751992851440,2.27691327,2575.5,2575.4,5.5297]
[1751992851646,1.50048327,2575.5,2575.4,6.30615]
[1751992852844,2.27691327,2575.5,2575.4,4.5747]
[1751992853040,2.27691327,2575.5,2575.4,1.3669]
[1751992854549,1.50048327,2575.5,2575.4,2.14336]
[1751992854751,2.27691327,2575.5,2575.4,2.3294]
[1751992855049,2.27691327,2575.5,2575.4,3.10586]
[1751992855349,1.50048327,2575.5,2575.4,3.10586]
[1751992855551,2.27691327,2575.5,2575.4,3.10586]
[1751992856241,2.27691327,2575.5,2575.4,2.3294]
[1751992856648,2.27691327,2575.5,2575.4,3.10586]
[1751992856848,2.27691327,2575.5,2575.4,2.3294]
[1751992857654,0.77646,2575.4,2575.3,3.2078]
[1751992857847,0.77652,2575.2,2575.1,0.9625]
[1751992858047,1.3474,2575.3,2575.1,1.6427]
[1751992858247,29.3499,2575.3,2575.1,1.45673]
[1751992858447,29.3499,2575.3,2575.2,1.73902]
[1751992858653,29.3499,2575.3,2575.2,2.41922]
[1751992858847,29.3499,2575.3,2575.2,1.6427]
[1751992859049,28.0025,2575.3,2575.2,2.41922]
[1751992859350,28.0025,2575.3,2575.2,1.6427]
[1751992860446,27.223,2575.3,2575.2,4.34506614]
[1751992860648,27.99949,2575.3,2575.2,5.12158614]
[1751992860846,27.222,2575.4,2575.2,4.34506614]
[1751992861042,27.99849,2575.4,2575.2,4.15908614]
[1751992861249,27.99849,2575.4,2575.3,0.9625]
[1751992861551,27.99849,2575.4,2575.3,1.6427]
[1751992861753,27.99849,2575.4,2575.3,2.41919]
[1751992861951,3.27956,2575.7,2575.3,1.6427]
[1751992862153,0.77646,2575.5,2575.4,3.66486614]
[1751992862453,2.27584892,2575.5,2575.4,4.34506614]
[1751992862847,2.27584892,2575.5,2575.4,5.12152614]
[1751992863350,29.49484892,2575.5,2575.4,7.55286614]
[1751992863553,29.49484892,2575.5,2575.4,8.32932614]
[1751992863951,29.49484892,2575.5,2575.4,7.55286614]
[1751992864550,29.49484892,2575.5,2575.4,8.32932614]
[1751992864851,1.49938892,2575.5,2575.4,8.32932614]
[1751992865054,2.3105711,2575.9,2575.4,9.49399614]
[1751992865352,29.5265711,2576.1,2575.8,3.47870614]
[1751992865550,27.99225,2576.1,2576.0,0.6802]
[1751992865855,30.84409381,2576.1,2576.0,0.6802]
[1751992867954,0.77631,2576.0,2575.8,0.77634]
[1751992868254,0.77631,2575.9,2575.8,2.41904]
[1751992868757,0.77631,2575.9,2575.8,0.6802]
[1751992868955,3.47867614,2575.9,2575.8,0.6802]
[1751992869151,0.77631,2575.9,2575.8,0.6802]
[1751992869456,0.77631,2575.9,2575.8,1.6427]
[1751992869656,0.77631,2575.9,2575.8,0.6802]
[1751992870858,27.98531,2575.9,2575.8,0.6802]
[1751992871958,0.77637,2575.7,2575.5,0.77641]